Cogmind - Beta 17.1 @@@ ROGUE MODE // 2026.09.07 @ 12:56:47 Player: Cole Result: Destroyed by H-71 Marshal with Heavy Mass Driver Performance ------------- Evolutions (5) 2500 Regions Visited (6) 1200 Robots Destroyed (35) 175 Value Destroyed (1324) 1324 Prototype IDs (4) 80 Alien Tech Used (0) 0 Bonus (1300) 1300 TOTAL SCORE: 6579 Bonus ------- Entered DSFs 500 Registered with UFD 300 Met Optimus in HQ 500 Cogmind --------- Core Integrity 0/1000 Matter 223/300 Energy 96/100 System Corruption 1% Temperature Cool (0) Movement Core (50) Location -5/DSF Parts ------- > --- POWER (3) -------- (None) > --- PROPULSION (3) --- (None) > --- UTILITY (7) ------ Enhanced Optical Array Improved Signal Interpreter Improved Target Analyzer > --- WEAPON (4) ------- Power Sword > --- INVENTORY (5) ---- Carbon-fiber Leg Carbon-fiber Leg Advanced Heat Sink DRS Beacon (Ready) Peak State ------------ > --- POWER ------------ Light Angular Momentum Engine Light Angular Momentum Engine Light Fission Core > --- PROPULSION ------- Carbon-fiber Leg Carbon-fiber Leg Carbon-fiber Leg > --- UTILITY ---------- Advanced Heat Sink Advanced Heat Sink Enhanced Optical Array Advanced Sensor Array Improved Signal Interpreter Improved Target Analyzer Hacking Suite > --- WEAPON ----------- Proton Cannon Phase Cannon Heavy Flak Cannon Long-range Missile Launcher > --- INVENTORY -------- Advanced Heat Sink Gatling Laser DRS Beacon [Rating: 76] Favorites ----------- Power Light Fission Core Engine Ion Engine Power Core Light Fission Core Reactor Antimatter Reactor Propulsion Wheel Leg Carbon-fiber Leg Wheel Wheel Hover Unit Combat Airjet Flight Unit VTOL Module Utility Enhanced Optical Array Device Improved Heat Sink Storage Small Storage Unit Processor Enhanced Optical Array Hackware Hacking Suite Protection Improved Medium Armor Plating Weapon Heavy Plasma Cannon Energy Gun Gatling Laser Energy Cannon Heavy Plasma Cannon Ballistic Gun Flak Gun Ballistic Cannon Heavy Flak Cannon Launcher Long-range Missile Launcher Special Weapon Flamer Slashing Weapon Power Sword Build | -11 -10 -10 -9 -6 -5 -5 ------- Run | Yrd Mat Sub Scr Fac Fac DSF Slots Evolved 10 | . . . . 8 2 . Power 2 | . . . . 2 . . Propulsion 1 | . . . . 1 . . Utility 5 | . . . . 4 1 . Weapon 2 | . . . . 1 1 . Parts Attached 86 | 6 1 1 8 59 2 9 Power 16 | 1 . . 1 12 . 2 Engine 10 | 1 . . . 8 . 1 Core 5 | . . . 1 4 . . Reactor 1 | . . . . . . 1 Propulsion 20 | 2 . . 1 13 . 4 Treads . | . . . . . . . Leg 3 | . . . . 3 . . Wheel 11 | 2 . . 1 4 . 4 Hover 4 | . . . . 4 . . Flight 2 | . . . . 2 . . Utility 24 | 1 1 . 2 19 1 . Device 13 | . . . . 13 . . Storage 3 | 1 . . 1 1 . . Processor 6 | . 1 . 1 3 1 . Hackware 1 | . . . . 1 . . Protection 1 | . . . . 1 . . Artifact . | . . . . . . . Weapon 26 | 2 . 1 4 15 1 3 Energy Gun 6 | 1 . . 2 3 . . Energy Cannon 6 | . . . 1 5 . . Ballistic Gun 4 | 1 . . . 3 . . Ballistic Cannon 2 | . . . 1 1 . . Launcher 1 | . . . . . 1 . Special Weapon 4 | . . 1 . 3 . . Impact Weapon . | . . . . . . . Slashing Weapon 3 | . . . . . . 3 Piercing Weapon . | . . . . . . . Special Melee Weapon . | . . . . . . . Unidentified Prototypes 4 | . . . . 4 . . Parts Lost 45 | . . . . 25 . 20 Power 11 | . . . . 6 . 5 Propulsion 10 | . . . . 6 . 4 Utility 11 | . . . . 7 . 4 Weapon 13 | . . . . 6 . 7 Highest Loss Streak 20 | . . . . 14 . 20 To Critical Strikes 2 | . . . . 2 . . Average Backups 5 | 1 3 3 6 4 2 3 Power . | . 1 1 1 . . . Propulsion . | . 1 1 . . . 1 Utility 2 | . . . 3 1 1 1 Weapon 1 | . 1 1 1 1 1 . Tool/Special . | . . . . . . . Unused Backups 8 | . . . 4 4 . . Power . | . . . . . . . Propulsion 2 | . . . 1 1 . . Utility 3 | . . . 2 1 . . Weapon 3 | . . . 1 2 . . Tool/Special . | . . . . . . . Average Slot Usage (%) 93 | . 91 100 99 90 97 76 Engine 4 | . 14 14 2 5 11 4 Core 11 | . . . 11 12 5 2 Wheel 18 | . 28 28 28 12 . 10 Hover 1 | . . . . 2 . . Device 11 | . . . . 18 17 10 Storage 7 | . 14 14 14 3 . . Processor 11 | . 6 14 14 10 17 17 Energy Gun 7 | . 14 14 12 3 . 1 Energy Cannon 9 | . . . 11 9 11 4 Ballistic Gun 2 | . 14 13 . 3 . . Ballistic Cannon 1 | . . . 1 1 5 4 Special Weapon 1 | . . . 2 . . . Peak Build Rating 76 | 6 8 9 23 70 76 76 Average Rating 38 | 5 6 8 19 53 75 56 On Entrance 27 | . 6 8 9 23 69 76 Avg Prop Armor Cover (%) 3 | . . . . 3 . . Naked Turns . | . . . . . . . Heaviest Build 72 | 13 13 13 39 72 60 60 Greatest Support 45 | 20 20 20 22 45 45 45 Greatest Overweight (x) 21 | . . . 1 21 1 19 Average Overweight (x) . | . . . . 1 1 . Largest Inventory Capacity 15 | 8 8 8 15 15 5 5 Average Capacity 8 | 7 8 8 10 7 5 5 Most Carried 12 | 3 3 4 9 12 4 5 Average Carried 6 | 1 3 3 7 5 3 4 Final Capacity 15 | 8 8 8 15 5 5 5 Final Carried 9 | 3 3 4 9 5 3 4 Scrap Suit Usage (%) 17 | . . . . 32 . . Parts Cannibalized 5 | . . . . 5 . . Class Distribution -------------------- 44% | Mutant 26% | Scavenger-Gunner 12% | Scavenger-Skirmisher 7% | Tank 6% | Skirmisher Dominant Class ---------------- Mutant | -10/Materials Mutant | -10/Subcaves Mutant | -9/Scraptown Scavenger-Gunner | -6/Factory Scavenger-Gunner | -5/Factory Mutant | -5/DSF Resources | -11 -10 -10 -9 -6 -5 -5 ----------- Run | Yrd Mat Sub Scr Fac Fac DSF Matter Collected 1315 | 254 40 6 80 832 . 103 Remotely . | . . . . . . . Salvage Created 1879 | 80 16 . . 1465 . 318 Parts 101 | 4 2 . . 85 . 10 Haulers Intercepted . | . . . . . . . Recyclers Shooed 2 | . . . . 2 . . Parts Field Recycled . | . . . . . . . Retrieved Matter . | . . . . . . . Parts Self-Destructed 8 | . . 8 . . . . Prevented . | . . . . . . . Parts Restored . | . . . . . . . Kills | -11 -10 -10 -9 -6 -5 -5 ------- Run | Yrd Mat Sub Scr Fac Fac DSF Combat Hostiles Destroyed 24 | . . . . 21 . 3 Melee 1 | . . . . . . 1 Guns 8 | . . . . 7 . 1 Cannons 11 | . . . . 11 . . AOE 3 | . . . . 2 . 1 Classes Destroyed 13 | 1 1 . . 10 . 1 Worker 1 | . . . . 1 . . Builder 3 | . . . . 3 . . Tunneler 1 | . 1 . . . . . Recycler 4 | 1 . . . 3 . . Operator 1 | . . . . 1 . . Watcher 1 | . . . . 1 . . Swarmer 6 | . . . . 6 . . Grunt 5 | . . . . 5 . . Brawler 2 | . . . . 2 . . Sentry 2 | . . . . 2 . . Specialist 3 | . . . . . . 3 Hunter 2 | . . . . 2 . . Programmer 4 | . . . . 4 . . Best Kill Streak 5 | 1 1 . . 5 . 2 Combat Bots Only 4 | . . . . 4 . 2 Max Kills in Single Turn 2 | 1 1 . . 2 . 2 Gunslinging . | . . . . . . . Exploded 1 | . . . . 1 . 1 Melee 1 | . . . . . . 1 Uniques/NPCs Destroyed . | . . . . . . . Combat | -11 -10 -10 -9 -6 -5 -5 -------- Run | Yrd Mat Sub Scr Fac Fac DSF Hostile Shots Fired 450 | . . 2 . 290 . 158 Missed 128 | . . 1 . 79 . 48 Hits 322 | . . 1 . 211 . 110 Melee 1 | . . . . 1 . . Projectile 321 | . . 1 . 210 . 110 Critical Strikes 11 | . . . . 7 . 4 Part Disruptions 1 | . . . . . . 1 Damage Taken 5734 | . . 14 . 3336 . 2384 Core 1839 | . . . . 807 . 1032 Absorbed by Shields . | . . . . . . . Regen/Repaired (Parts) 50 | . . . . 50 . . Core Remaining (%) 68 | 100 . . 100 5 . . Volleys Fired 89 | 6 2 2 . 72 . 7 Largest 4 | 2 2 2 . 3 . 4 Hottest 284 | 60 60 60 . 280 . 284 Shots Fired 189 | 12 4 4 . 152 . 17 Gun 84 | 12 4 4 . 61 . 3 Cannon 92 | . . . . 82 . 10 Launcher 4 | . . . . . . 4 Special 9 | . . . . 9 . . Kinetic 53 | 6 2 2 . 39 . 4 Thermal 105 | 6 2 2 . 88 . 7 Explosive 4 | . . . . . . 4 Electromagnetic 25 | . . . . 23 . 2 Robot Hit Streak 22 | 3 1 . . 22 . 5 Robot Miss Streak 11 | 3 . . . 11 . 4 Penetration Max . | . . . . . . . Secondary Targets . | . . . . . . . Shots Hit Robots 117 | 5 1 . . 86 . 25 Core Hits 85 | 2 1 . . 63 . 19 Critical Kills 1 | . . . . 1 . . Critical Parts Destroyed . | . . . . . . . Critical Strikes 7 | . . . . 6 . 1 Burn 1 | . . . . 1 . . Meltdown 1 | . . . . 1 . . Corrupt 4 | . . . . 4 . . Sever 1 | . . . . . . 1 Melee Attacks 15 | . . . . . . 15 Impact . | . . . . . . . Slashing 15 | . . . . . . 15 Piercing . | . . . . . . . Sneak Attacks . | . . . . . . . Combat Hostiles . | . . . . . . . Follow-up Attacks 6 | . . . . . . 6 Damage Inflicted 3835 | 53 11 . . 2417 . 1354 Guns 758 | 53 11 . . 639 . 55 Cannons 1756 | . . . . 1538 . 218 Explosions 934 | . . . . 231 . 703 Melee 378 | . . . . . . 378 Ramming . | . . . . . . . Kinetic 583 | 20 . . . 463 . 100 Thermal 1823 | 33 11 . . 1631 . 148 Explosive 703 | . . . . . . 703 Electromagnetic 348 | . . . . 323 . 25 Impact . | . . . . . . . Slashing 378 | . . . . . . 378 Piercing . | . . . . . . . Highest Corruption 2 | . . . . 2 . 1 Average Corruption 1 | . . . . 1 . 1 Corruption Purged 3 | . . . . 3 . . Corruption Blocked . | . . . . . . . Effects 18 | . . . . 17 . 1 Message Errors 5 | . . . . 5 . . Matter Fused 3 | . . . . 3 . . Heat Flow Errors 4 | . . . . 4 . . Energy Discharges 2 | . . . . 2 . . Parts Rejected 1 | . . . . 1 . . Parts Fused 1 | . . . . 1 . . Data Loss (minor) 1 | . . . . . . 1 Alerts 1 | . . . . 1 . . Overload Shots . | . . . . . . . Overflow Damage 155 | . . . . 122 . 33 Projectiles 56 | . . . . 31 . 25 Explosions 99 | . . . . 91 . 8 Melee . | . . . . . . . Knockbacks 10 | . . . . 6 . 4 Impact . | . . . . . . . Kinetic 8 | . . . . 5 . 3 Secondary 2 | . . . . 1 . 1 Self-Inflicted Damage 142 | . . . . 84 . 58 Shots 3 | . . . . 2 . 1 Rammed . | . . . . . . . Targets Rammed . | . . . . . . . Kicked . | . . . . . . . Crushed . | . . . . . . . Highest Temperature 547 | . . . . 547 . 75 Average Temperature 195 | . . . . 200 . 36 Received Heat Transfer 477 | . . 9 . 198 . 270 Effects 11 | . . . . 11 . . Shutdowns 6 | . . . . 6 . . Energy Bleed 2 | . . . . 2 . . Matter Decay 1 | . . . . 1 . . Damage (minor) 2 | . . . . 2 . . Siege Activations . | . . . . . . . Martial Activations . | . . . . . . . Shielding Activations . | . . . . . . . Robots Disrupted . | . . . . . . . Combat Hostiles . | . . . . . . . Robots Corrupted . | . . . . . . . Combat Hostiles . | . . . . . . . Parts Fried 1 | . . . . 1 . . Impact Corruptions . | . . . . . . . Robots Melted 1 | . . . . 1 . . Combat Hostiles 1 | . . . . 1 . . Parts Melted 4 | . . . . 4 . . Heat Transferred 2756 | 75 25 . . 2420 . 236 Parts Sabotaged . | . . . . . . . Parts Stolen . | . . . . . . . Parts Stripped . | . . . . . . . Power Chain Reactions 2 | . . . . 2 . . Alert | -11 -10 -10 -9 -6 -5 -5 ------- Run | Yrd Mat Sub Scr Fac Fac DSF Maximum Alert Level . | . . . . . . . Low Security (%) 100 | 100 100 . . 100 100 100 Level 1 . | . . . . . . . Level 2 . | . . . . . . . Level 3 . | . . . . . . . Level 4 . | . . . . . . . Level 5 . | . . . . . . . High Security . | . . . . . . . Max Security . | . . . . . . . Peak Influence 140 | 5 5 . . 123 56 140 Initial 56 | . . . . . 56 39 Average 32 | . . . . 31 56 70 Influence Increases 827 | 5 5 . . 632 . 185 Destroy 0b10 Robot/C 480 | . . . . 420 . 60 Destroy 0b10 Robot/NC 65 | 5 5 . . 45 . 10 Destroy Leader 112 | . . . . 102 . 10 Successful Hack 27 | . . . . 27 . . Disable Machine 15 | . . . . 15 . . Destroy Structure 113 | . . . . 23 . 90 Lose Combat Pursuer 15 | . . . . . . 15 Influence Decreases 802 | 5 5 . . 516 60 216 Entered New Map 77 | . . . . . 60 17 Time Decay 420 | 5 5 . . 410 . . Lost Part 305 | . . . . 106 . 199 Squads Dispatched 11 | . 1 . . 8 . 2 Investigation 3 | . . . . 3 . . Extermination 5 | . . . . 5 . . Reinforcement 3 | . 1 . . . . 2 Assault . | . . . . . . . Garrison . | . . . . . . . Intercept . | . . . . . . . Searches Triggered . | . . . . . . . Construction Impeded . | . . . . . . . Haulers Reinforced . | . . . . . . . Active Scanning Responses . | . . . . . . . Cargo Convoy Interrupts . | . . . . . . . Stealth | -11 -10 -10 -9 -6 -5 -5 --------- Run | Yrd Mat Sub Scr Fac Fac DSF Distress Signals . | . . . . . . . Communications Jammed . | . . . . . . . Distress Signals . | . . . . . . . Times Spotted 35 | . 1 2 . 25 . 7 Peak Tracking Total 4 | . 1 2 . 4 . 4 Tactical Retreats 1 | . . . . . . 1 Traps | -11 -10 -10 -9 -6 -5 -5 ------- Run | Yrd Mat Sub Scr Fac Fac DSF Traps Triggered 4 | . . . . 3 . 1 Indirectly . | . . . . . . . Trap Hack Attempts . | . . . . . . . Triggered . | . . . . . . . Disarmed . | . . . . . . . Reprogrammed . | . . . . . . . Reused . | . . . . . . . Traps Extracted . | . . . . . . . Installed . | . . . . . . . Triggered . | . . . . . . . Machines | -11 -10 -10 -9 -6 -5 -5 ---------- Run | Yrd Mat Sub Scr Fac Fac DSF Machines Disabled 1 | . . . . 1 . . Max in Single Turn 1 | . . . . 1 . . Machines Repaired . | . . . . . . . Machines Dismantled . | . . . . . . . Machines Sabotaged . | . . . . . . . Overloaded Fab Kills . | . . . . . . . Hacking | -11 -10 -10 -9 -6 -5 -5 --------- Run | Yrd Mat Sub Scr Fac Fac DSF Machines Accessed 16 | . . . 6 9 1 . Terminals 9 | . . . . 8 1 . Fabricators . | . . . . . . . Repair Stations . | . . . . . . . Recycling Units 1 | . . . . 1 . . Scanalyzers . | . . . . . . . Garrison Access . | . . . . . . . Total Hacks 44 | . . . 27 16 1 . Successful 35 | . . . 27 7 1 . Failed 9 | . . . . 9 . . Catastrophic 2 | . . . . 2 . . Database Lockouts . | . . . . . . . Manual 12 | . . . . 12 . . Terminals 15 | . . . . 14 1 . Fabricators . | . . . . . . . Repair Stations . | . . . . . . . Recycling Units 2 | . . . . 2 . . Scanalyzers . | . . . . . . . Garrison Access . | . . . . . . . Terminal Hacks 31 | . . . 27 3 1 . Record 27 | . . . 27 . . . Open DSF 3 | . . . . 2 1 . Recall Reinforcements 1 | . . . . 1 . . Fabricator Hacks . | . . . . . . . Repair Station Hacks . | . . . . . . . Recycling Unit Hacks . | . . . . . . . Scanalyzer . | . . . . . . . Garrison Access Hacks . | . . . . . . . Unauthorized Hacks 4 | . . . . 4 . . Terminals 4 | . . . . 4 . . Track 2 | . . . . 2 . . Botnet 2 | . . . . 2 . . Fabricators . | . . . . . . . Repair Stations . | . . . . . . . Recycling Units . | . . . . . . . Scanalyzers . | . . . . . . . Garrison Access . | . . . . . . . Data Cores Recovered 1 | . . . . 1 . . Used . | . . . . . . . Hacking Detections 7 | . . . . 7 . . Full Trace Events 2 | . . . . 2 . . Feedback Events . | . . . . . . . Feedback Blocked . | . . . . . . . Robot Schematics Acquired . | . . . . . . . Robots Built . | . . . . . . . Authchips . | . . . . . . . Time . | . . . . . . . Total Robot Build Rating . | . . . . . . . Part Schematics Acquired . | . . . . . . . Parts Built . | . . . . . . . Authchips . | . . . . . . . Time . | . . . . . . . Total Part Build Rating . | . . . . . . . Part Studies Acquired . | . . . . . . . Parts Repaired . | . . . . . . . Time . | . . . . . . . Parts Recycled . | . . . . . . . Recycled Matter . | . . . . . . . Retrieved Matter . | . . . . . . . Retrieved Components . | . . . . . . . Parts Scanalyzed . | . . . . . . . Part Schematics Acquired . | . . . . . . . Parts Damaged . | . . . . . . . Bothacking | -11 -10 -10 -9 -6 -5 -5 ------------ Run | Yrd Mat Sub Scr Fac Fac DSF Used RIF Installer . | . . . . . . . Robots Hacked . | . . . . . . . Non-combat . | . . . . . . . Combat . | . . . . . . . Robot Hacks Applied . | . . . . . . . Relay Couplers Released . | . . . . . . . Fabnet Peak Effective % . | . . . . . . . Robots Rewired . | . . . . . . . Allies Hacked . | . . . . . . . Hacks Repelled . | . . . . . . . Allies | -11 -10 -10 -9 -6 -5 -5 -------- Run | Yrd Mat Sub Scr Fac Fac DSF Total Allies . | . . . . . . . Largest Group . | . . . . . . . Highest-Rated Group . | . . . . . . . Highest-Rated Ally . | . . . . . . . Initial UFD Resources 28 | . . . . 24 28 28 Total Orders . | . . . . . . . Ally Attacks . | . . . . . . . Total Damage . | . . . . . . . Kills . | . . . . . . . Allies Corrupted . | . . . . . . . Allies Melted . | . . . . . . . Intel | -11 -10 -10 -9 -6 -5 -5 ------- Run | Yrd Mat Sub Scr Fac Fac DSF Active Infowar (turns) 5159 | . 25 216 1791 2932 10 185 Optics 5159 | . 25 216 1791 2932 10 185 Sensors 521 | . . . . 438 10 73 IFF 510 | . . . . 510 . . Robot Analysis Total . | . . . . . . . Derelict Logs Recovered . | . . . . . . . Drone Launches . | . . . . . . . Drone Recoveries . | . . . . . . . Exploration | -11 -10 -10 -9 -6 -5 -5 ------------- Run | Yrd Mat Sub Scr Fac Fac DSF Turns Passed 5259 | 62 61 216 1792 2933 10 185 Spaces Moved 3551 | 41 65 241 1852 1264 5 83 Core 51 | 1 . . . 44 . 6 Treads . | . . . . . . . Legs 79 | . . . . 64 5 10 Wheels 3273 | 40 65 241 1852 1008 . 67 Hover 135 | . . . . 135 . . Flight 13 | . . . . 13 . . Fastest Speed 50 | 50 80 80 80 95 190 90 Average Speed 107 | 79 80 80 95 131 190 121 Slowest Speed 1155 | 80 80 80 100 1155 190 1000 Overloaded Moves . | . . . . . . . Propulsion Burnouts . | . . . . . . . Robots Hopped . | . . . . . . . Potential Cave-ins . | . . . . . . . Cave-ins Triggered . | . . . . . . . Exploration Rate (%) 30 | 4 18 13 91 24 1 59 Regions Visited 6 Branch Regions 2 Pre-discovered Areas . | . . . . . . . Known Exits Taken 1 | . . . . . 1 . Unknown Exits Taken 5 | 1 1 1 1 1 . . Scrap Searched 6 | . . . 6 . . . Spaces Dug . | . . . . . . . Terrain Destroyed 65 | . . . . 18 . 47 Melee . | . . . . . . . Projectile 13 | . . . . 13 . . AOE 52 | . . . . 5 . 47 Terrain Rammed . | . . . . . . . Walls Destroyed . | . . . . . . . Machines Disabled . | . . . . . . . Actions | -11 -10 -10 -9 -6 -5 -5 --------- Run | Yrd Mat Sub Scr Fac Fac DSF Total 4809 | 55 69 259 1887 2398 6 135 Wait 970 | . 2 15 1 931 . 21 Move 3545 | 40 64 240 1851 1263 4 83 Hop . | . . . . . . . Pick Up 23 | 3 . . 9 11 . . Fast Attach 74 | 6 1 1 6 50 . 10 Attach 15 | . . . 1 11 2 1 Detach 24 | . . 1 5 16 . 2 Swap 9 | . . . 2 6 . 1 Drop 43 | . . . 12 30 . 1 Fire 89 | 6 2 2 . 72 . 7 Melee 9 | . . . . . . 9 Ram . | . . . . . . . Kick . | . . . . . . . Crush . | . . . . . . . Escape Stasis 8 | . . . . 8 . . Rewire . | . . . . . . . Trap . | . . . . . . . Miscellaneous . | . . . . . . . Route ------- -11/Scrapyard -10/Materials -10/Subcaves -9/Scraptown -6/Factory -5/Factory -5/DSF (discovered 1 exit: [*Fac]) History --------- Turn | Location | Event 10 | -11/Scrapyard | Discovered new exit (range 16) 63 | -11/Scrapyard | Entered Materials 64 | -10/Materials | Met a group of wandering Federalists 115 | -10/Materials | Discovered new exit (range 6) 124 | -10/Materials | Entered Subcaves 124 | -10/Subcaves | Accompanied by 5 allies 125 | -10/Subcaves | Continued accompanying wandering Federalists (5) 310 | -10/Subcaves | Build established: Mutant 333 | -10/Subcaves | Wandering Federalist uncovered a shortcut to Scraptown 340 | -10/Subcaves | Entered Scraptown 466 | -9/Scraptown | Visited Cyclists 931 | -9/Scraptown | Visited SPCMW 963 | -9/Scraptown | Visited Symbiants 1000 | -9/Scraptown | Visited TADAMA 1027 | -9/Scraptown | Visited Bundlers 1140 | -9/Scraptown | Visited UFD Registry 1142 | -9/Scraptown | Registered with UFD as "Wiresys" 1166 | -9/Scraptown | Visited Observation Area 1211 | -9/Scraptown | Visited Scrapoid Pod Storage 1238 | -9/Scraptown | Visited Scrap Suit Storage 1249 | -9/Scraptown | Found Scrap Suit 1500 | -9/Scraptown | Visited Science Testing Area 1521 | -9/Scraptown | Visited Derelict Rescue Squad 1535 | -9/Scraptown | Found DRS Beacon 1559 | -9/Scraptown | Visited Supply Room 1610 | -9/Scraptown | Visited Supply Room 1633 | -9/Scraptown | Visited Curators Association 1683 | -9/Scraptown | Visited Junk Repository 1825 | -9/Scraptown | Discovered new exit (range 5) 2001 | -9/Scraptown | Met Optimus 2001 | -9/Scraptown | Accepted into 0bPrime 2132 | -9/Scraptown | Entered Factory 2132 | -6/Factory | Evolved 8 slots: Power x2, Propulsion x1, Utility x4, Weapon x1 2235 | -6/Factory | Attached CPS modules to S-27 Virus 2801 | -6/Factory | Lost 5 parts (1p3n1u) 2868 | -6/Factory | Build established: Skirmisher 3108 | -6/Factory | Core integrity fell below 50% 3165 | -6/Factory | Lost 14 parts (3p3n3u5w) 3176 | -6/Factory | Core integrity fell below 20% 3554 | -6/Factory | Build established: Scavenger-Gunner 4977 | -6/Factory | Build established: Scavenger-Skirmisher 4984 | -6/Factory | Discovered new exit (range 17) 5065 | -6/Factory | Entered another Factory area 5065 | -5/Factory | Evolved 2 slots: Utility x1, Weapon x1 5075 | -5/Factory | Identified exit to DSF 5075 | -5/Factory | Entered DSF 5116 | -5/DSF | Discovered new exit (range 22) 5128 | -5/DSF | Additional patrols routed to DSF 5245 | -5/DSF | Core integrity fell below 50% 5255 | -5/DSF | Core integrity fell below 20% 5260 | -5/DSF | Destroyed by H-71 Marshal with Heavy Mass Driver Last Messages --------------- 05240_ X-67 Chaingunner Angular Momentum Engine severed. 05240_ Power Sword follow-up attack on X-67 Chaingunner. 05242_ Hvy. Flak Cannon destroyed. 05244_ Penetrated by Slug. 05244_ Knocked back. 05246_ Power Sword follow-up attack on X-67 Chaingunner. 05247_ Penetrated by Slug. 05249_ Acquired Angular Momentum Engine. 05249_ Penetrated by Slug. 05249_ Power Sword destroyed. 05249_ Critical hit (Blast). 05249_ Knocked back. 05250_ Angular Momentum Engine destroyed. 05253_ Penetrated by Slug. 05253_ Slug penetrates Wall. 05255_ Knocked back. 05256_ Power Sword follow-up attack on H-66 Slayer. 05257_ Penetrated by Slug. 05257_ Power Sword destroyed. [Achievement: This Is Interesting...] Map ----- +----------------------------------------------------+ | ??????????????????????????????????? | | ?????????###??????????????????????? | | ?????????""#?????????###??????????? | | ?????????#"#???????### ###????????? | | ??????####"##???#### %% %####?????? | | ??????#"""""##### ## ! !!#???#?? | | ??????#"""""## # ! ! !!# #!! | | ???#"##"" ! % | | ???#""""" = | | ???####"" ## #=== ###!!!#!! | | ??????### ### #=== ## #???!!#?? | | ???????## ###### ### !!#??##?? | | ???????# ==#??###?? !!#?????? | | ???????# ==#??????? !!#?????? | | ???????## ###???????"# "##?????? | | ???????# ==#???????== !!#?????? | | ???????# ==#???????== !!#?????? | | ???????# ==#??????#== !##????? | | ??????### ######?## ##???? | | ??????#!! #?%%%#!!!## !!???? | | ?????##!! ##%%%#!!! =% !!!??? | | ?????#; ! ??? | | ????### ?? | | ????# ; H% ??? | | ??????#/x h## #/// %* !!!#?? | | ??????# @## #?//### ## !!???? | | ??????###% %#""##??? ? ? #????? | | ???????#! !!#????????! ??*???????? | | ???????#! !!!#????????? ????????? | | ???????#!!%!!#??????????? **??????? | | ???????## #;#?????????????#??????? | | ???????#! !!#????????????????????? | | ???????#! !!#????????????????????? | | ???????## ###????????????????????? | | ????????# #??????????????????????? | | ????????" ??????????????????????? | | ????????" ??????????????????????? | | ???????"" ??????????????????????? | | ???????"""%"??????????????????????? | | ???????"""%"??????????????????????? | | ????????##%#??????????????????????? | | ??????????%#??????????????????????? | | ??????????"???????????????????????? | | ??????????#???????????????????????? | | ??????????????????????????????????? | | ??????????????????????????????????? | | ??????????????????????????????????? | | ??????????????????????????????????? | | | | | +----------------------------------------------------+ Best States ------------- Heat Dissipation 78 Energy Generation 44 Energy Capacity 900 Matter Stores 300 Matter Capacity 300 Sight Range 22 Robot Scan Range 16 Terrain Scan Density 10 Base Temperature (-) 150 EM Shielding 2 Armor Coverage 225 Phase Shifting 5 Evasion (%) 46 Target Analysis 6 Offensive Hacking 10 Item Schematics ----------------- None Robot Schematics ------------------ None Fabricated ------------ Nothing Repaired ---------- Nothing Studied --------- None Alien Tech Used ----------------- None Achievements -------------- Heavy Suspicion This Is Interesting... Challenges ------------ None Game ------ Seed WarlordMetaShredder Manual? 0 Play Time 00:47:02 Cumulative 45.0 hours Start 2026.09.07 @ 12:04:06 End 2026.09.07 @ 12:56:47 Sessions 1 Manual Loads 0 Difficulty Rogue Special Mode None Game No. 108 Rogue 108 Adventurer 0 Explorer 0 Win Type - Total 0 Types 0/0/0/0/0/0/0/0/0/0 Lore% 25 Gallery% 32 Achievement% 23 Wizard Run 0 Options --------- Layout 2 ASCII 0 Keyboard 0 Movement Numpad Keybinds 1 Fullscreen 1 Font 32/SmallcapsGlow Map View 77x44 Zoom Use 0% Tactical HUD 1 Map Filters NONE Filters NONE Steam 1 RUN: 6dd95746-3954-4999-a65b-9ccb26fd709a